bitfinex-derivatives/quotes_ETHF0:USTF0_20250316
["timestamp","ask_amount","ask_price","bid_price","bid_amount"]
[1742150401012,0.84284,1898.3,1898.2,2.29636]
[1742150401305,0.84284,1898.3,1898.2,1.4535]
[1742150401504,1.54854,1898.3,1898.2,2.29638]
[1742150401895,1.54854,1898.3,1898.2,1.4535]
[1742150402206,1.54854,1898.3,1898.2,2.29638]
[1742150402700,0.84284,1898.3,1898.2,2.29635]
[1742150403001,4.05064,1898.4,1898.3,0.84284]
[1742150403198,4.05064,1898.4,1898.3,2.24164]
[1742150404104,4.05064,1898.4,1898.3,1.3988]
[1742150405706,4.05064,1898.4,1898.3,2.24164]
[1742150407316,4.05064,1898.4,1898.3,1.3988]
[1742150407503,4.74494,1898.4,1898.3,2.24164]
[1742150409007,1.53714,1898.4,1898.3,2.24164]
[1742150410208,1.53714,1898.4,1898.3,1.3988]
[1742150410700,1.53714,1898.4,1898.3,2.24164]
[1742150410701,4.74494,1898.4,1898.3,2.24164]
[1742150411106,4.74494,1898.4,1898.3,1.3988]
[1742150411305,4.74494,1898.4,1898.3,2.24164]
[1742150411505,4.74494,1898.4,1898.3,1.3988]
[1742150412117,4.74494,1898.4,1898.3,2.24164]
[1742150414206,6.14814,1898.4,1898.3,2.24164]
[1742150414401,6.14814,1898.4,1898.3,1.3988]
[1742150414906,6.14814,1898.4,1898.3,2.24164]
[1742150415108,2.94034,1898.4,1898.3,2.24164]
[1742150415310,2.24604,1898.4,1898.3,1.3988]
[1742150416513,2.24604,1898.4,1898.3,2.24164]
[1742150417714,0.85069055,1898.5,1898.4,0.84279]
[1742150417908,0.85069055,1898.5,1898.4,3.68199]
[1742150418310,2.27309055,1898.5,1898.4,3.68199]
[1742150421516,2.27309055,1898.5,1898.4,2.8392]
[1742150421814,2.27309055,1898.5,1898.4,3.68199]
[1742150422325,2.27309055,1898.5,1898.4,2.8392]
[1742150422715,2.27309055,1898.5,1898.4,3.68199]
[1742150422921,0.84292,1898.2,1898.0,3.2078]
[1742150423110,0.84292,1898.2,1898.1,5.76899]
[1742150424216,0.84292,1898.2,1898.1,7.16969]
[1742150426109,3.2078,1898.4,1898.3,0.84284]
[1742150426320,3.2078,1898.4,1898.1,8.4341]
[1742150426321,0.00790055,1898.5,1898.4,0.84279]
[1742150427020,0.00790055,1898.5,1898.4,5.04329]
[1742150427423,0.00790055,1898.5,1898.4,8.25109]
[1742150427912,3.2078,1898.8,1898.7,0.84266]
[1742150428420,3.2078,1898.8,1898.6,0.84268]
[1742150428720,4.77383,1898.8,1898.7,2.17056]
[1742150429614,4.77383,1898.8,1898.7,1.3279]
[1742150430016,3.2078,1898.8,1898.7,2.17056]
[1742150431125,3.2078,1898.8,1898.7,2.84736]
[1742150432726,4.05042,1898.8,1898.7,2.84736]
[1742150435119,3.2078,1898.8,1898.7,2.84736]
[1742150435327,4.05042,1898.8,1898.7,2.84736]
[1742150435519,4.05042,1898.8,1898.7,2.0047]
[1742150436327,3.2078,1898.8,1898.7,2.84736]
[1742150436829,4.05042,1898.8,1898.7,2.84736]
[1742150437024,3.2078,1898.8,1898.7,2.84736]
[1742150437337,4.05042,1898.8,1898.7,2.84736]
[1742150438325,3.2078,1898.8,1898.7,2.84736]
[1742150441139,0.85050055,1898.9,1898.7,2.84736]
[1742150441430,4.05830055,1898.9,1898.8,1.4545]
[1742150441632,4.05830055,1898.9,1898.8,2.29712]
[1742150444835,5.43910055,1898.9,1898.8,2.29712]
[1742150448030,0.84266,1898.7,1898.6,0.00790055]
[1742150448227,0.84266,1898.7,1898.6,1.37530055]
[1742150448731,1.56626,1898.7,1898.6,1.37530055]
[1742150449327,4.77406,1898.7,1898.6,0.00790055]
[1742150449731,4.77406,1898.7,1898.6,1.37530055]
[1742150451728,4.77406,1898.7,1898.6,0.00790055]
[1742150453430,4.77406,1898.7,1898.6,0.85060055]
[1742150453635,1.56626,1898.7,1898.6,0.85060055]
[1742150454535,4.77406,1898.7,1898.6,1.39650055]
[1742150458439,4.05046,1898.7,1898.6,2.23920055]
[1742150458626,3.2078,1898.7,1898.6,2.23920055]
[1742150460143,3.21570055,1898.9,1898.8,0.84262]
[1742150460330,0.00790055,1898.9,1898.8,4.36162]
[1742150460539,0.85047055,1898.9,1898.8,5.80182]
[1742150460731,1.46650055,1898.9,1898.8,5.80182]
[1742150460931,0.00790055,1898.9,1898.8,5.80182]
[1742150462432,1.46650055,1898.9,1898.8,5.80182]
[1742150462741,2.30907055,1898.9,1898.8,5.80182]
[1742150463045,2.30907055,1898.9,1898.8,4.9592]
[1742150463238,2.30907055,1898.9,1898.8,2.28282]
[1742150463841,2.30907055,1898.9,1898.8,1.4402]
[1742150464043,3.00127055,1898.9,1898.8,1.4402]
[1742150464343,3.00127055,1898.9,1898.8,2.28282]
[1742150465040,1.46650055,1898.9,1898.8,2.28282]
[1742150465533,2.30907055,1898.9,1898.8,2.28282]
[1742150466839,2.30907055,1898.9,1898.8,1.4402]
[1742150467237,2.30907055,1898.9,1898.8,2.28282]
[1742150472151,1.46650055,1898.9,1898.8,2.28282]
[1742150472335,0.00790055,1898.9,1898.8,2.28282]
[1742150473745,1.4656,1899.3,1898.9,2.10637]
[1742150473948,1.4656,1899.3,1899.2,0.84244]
[1742150474140,2.30799,1899.3,1899.2,0.84244]
[1742150474944,1.4656,1899.3,1899.2,0.84244]
[1742150475449,1.4656,1899.3,1899.1,2.25575]
[1742150475850,2.30803,1899.3,1899.2,1.3813]
[1742150476045,2.30803,1899.3,1899.2,2.22374]
[1742150476351,2.30803,1899.3,1899.2,1.3813]
[1742150476551,2.30803,1899.3,1899.2,2.22374]
[1742150478354,2.30803,1899.3,1899.2,1.3813]
[1742150478654,2.30803,1899.3,1899.2,2.22374]
[1742150479046,2.30803,1899.3,1899.2,1.3813]
[1742150479445,2.30803,1899.3,1899.2,2.22374]
[1742150482353,1.4656,1899.3,1899.2,2.22374]
[1742150482554,2.30799,1899.3,1899.2,2.22374]
[1742150483559,1.4656,1899.3,1899.2,2.22374]
[1742150484254,0.00790055,1899.4,1899.3,0.84239]
[1742150484453,0.00790055,1899.4,1899.3,5.70369]
[1742150485163,0.00790055,1899.4,1899.3,8.91149]
[1742150485364,3.32728,1899.8,1899.6,0.84223]
[1742150485554,4.16945,1899.8,1899.7,2.0596]
[1742150485861,0.96165,1899.8,1899.7,2.0596]
[1742150486061,2.36745,1899.8,1899.7,2.0596]
[1742150487654,2.36745,1899.8,1899.7,2.90182]
[1742150488253,2.36745,1899.8,1899.7,2.0596]
[1742150488547,2.36745,1899.8,1899.7,2.7564]
[1742150488747,0.84222,1899.7,1899.6,0.00790055]
[1742150488957,2.17372,1899.7,1899.6,1.47500055]
[1742150490357,0.11948,1899.8,1899.7,0.84222]
[1742150490557,0.84222,1899.7,1899.6,1.47500055]
[1742150490759,2.34558,1899.8,1899.6,2.31724055]
[1742150491253,0.96168,1899.8,1899.7,1.3344]
[1742150491454,0.11948,1899.8,1899.7,2.17662]
[1742150491657,0.11948,1899.8,1899.7,2.91002]
[1742150492065,0.84742708,1899.9,1899.8,0.84217]
[1742150492256,0.84742708,1899.9,1899.8,2.17657]
[1742150493071,0.84742708,1899.9,1899.8,2.89757]
[1742150494268,4.05522708,1899.9,1899.8,2.89757]
[1742150497166,3.21306708,1899.9,1899.8,2.89757]
[1742150497369,4.05519708,1899.9,1899.8,2.0554]
[1742150497561,4.79059708,1899.9,1899.8,2.0554]
[1742150498567,0.84238,1899.4,1899.2,12.7228]
[1742150498875,0.84235,1899.5,1899.4,0.84234]
[1742150499171,1.53919,1899.6,1899.5,0.84231]
[1742150499367,0.84233,1899.5,1899.4,0.84232]
[1742150499568,1.51973,1899.5,1899.4,0.84232]
[1742150499865,0.6774,1899.5,1899.4,0.84232]
[1742150500069,0.6774,1899.5,1899.4,0.84235]
[1742150500270,1.51973,1899.5,1899.4,0.84235]
[1742150500866,1.51973,1899.5,1899.3,0.00790055]
[1742150500867,0.84235,1899.4,1899.3,0.00790055]
[1742150501373,0.84235,1899.4,1899.3,2.24309055]
[1742150501670,0.84235,1899.4,1899.3,1.40070055]
[1742150502062,1.51973,1899.5,1899.4,0.84235]
[1742150502261,1.51973,1899.5,1899.4,2.24595]
[1742150503068,1.51973,1899.5,1899.4,1.4036]
[1742150503268,1.51973,1899.5,1899.4,0.7277]
[1742150503462,1.51971,1899.5,1899.4,1.4061]
[1742150503863,0.84235,1899.4,1899.3,0.00790055]
[1742150504063,2.22425,1899.4,1899.3,0.85029055]
[1742150504268,5.43205,1899.4,1899.3,1.41400055]
[1742150504477,2.22425,1899.4,1899.3,1.41400055]
[1742150504665,2.22425,1899.4,1899.3,2.25639055]
[1742150505766,2.22425,1899.4,1899.3,2.25639055]
[1742150506472,2.22425,1899.4,1899.3,1.41400055]
[1742150506672,5.43205,1899.4,1899.3,1.41400055]
[1742150507870,5.43205,1899.4,1899.3,2.25639055]
[1742150508572,3.2078,1899.4,1899.3,2.25639055]
[1742150508772,4.05015,1899.4,1899.3,2.25639055]
[1742150509072,3.2078,1899.4,1899.3,2.25639055]
[1742150509473,2.21214,1899.5,1899.4,0.84235]
[1742150509667,0.7358138,1899.6,1899.4,1.4177]
[1742150509863,2.9478938,1899.6,1899.5,0.6848]
[1742150510065,2.21208,1899.6,1899.5,1.3654]
[1742150510273,2.21208,1899.6,1899.5,2.7831]
[1742150513777,2.21208,1899.6,1899.5,3.62541]
[1742150514079,2.21208,1899.6,1899.5,2.7831]
[1742150515679,2.21208,1899.6,1899.5,3.62541]
[1742150517380,1.3698,1899.6,1899.5,3.62541]
[1742150520481,2.21206,1899.6,1899.5,3.62541]
[1742150521074,2.21206,1899.6,1899.5,2.7831]
[1742150521477,0.84235,1899.4,1899.3,0.00790055]
[1742150521777,4.05015,1899.4,1899.3,0.85029055]
[1742150521984,4.05015,1899.4,1899.3,0.00790055]
[1742150522278,5.38035,1899.4,1899.3,1.34230055]
[1742150522479,6.10695,1899.4,1899.3,1.34230055]
[1742150523284,6.10695,1899.4,1899.3,2.18469055]
[1742150525683,6.10695,1899.4,1899.3,1.34230055]
[1742150526284,6.10695,1899.4,1899.3,2.18469055]
[1742150526486,6.10695,1899.4,1899.3,1.34230055]
[1742150530075,0.84261,1898.9,1898.8,0.84259]
[1742150530287,0.84261,1898.9,1898.8,1.4028]
[1742150530482,2.22105,1899.0,1898.9,0.84257]
[1742150530684,2.22105,1899.0,1898.9,2.22817]
[1742150531081,0.8425,1899.1,1899.0,0.84248]
[1742150531276,0.8425,1899.1,1899.0,2.24528]
[1742150531885,2.221,1899.1,1899.0,2.24533]
[1742150532392,1.3785,1899.1,1899.0,2.24533]
[1742150532583,1.5782838,1899.2,1899.1,0.84248]
[1742150532889,1.5782538,1899.2,1899.1,2.28788]
[1742150533086,1.5782538,1899.2,1899.1,1.4454]
[1742150533282,2.9417538,1899.2,1899.1,2.28788]
[1742150533584,2.20594,1899.2,1899.1,2.28788]
[1742150535794,2.20594,1899.2,1899.1,1.4454]
[1742150536692,2.20594,1899.2,1899.1,2.28788]
[1742150536887,2.20594,1899.2,1899.1,1.4454]
[1742150537192,0.84253,1899.0,1898.9,2.22817]
[1742150537384,0.84253,1899.0,1898.9,1.3856]
[1742150538593,2.28973,1899.0,1898.9,2.8434]
[1742150538794,2.28973,1899.0,1898.9,3.68597]
[1742150539094,2.28973,1899.0,1898.9,2.8434]
[1742150540287,0.84257,1898.9,1898.8,0.00790055]
[1742150540490,5.49757,1898.9,1898.8,0.00790055]
[1742150541294,0.84275,1898.5,1898.4,10.05056]
[1742150541490,0.84275,1898.5,1898.4,5.50836]
[1742150542994,2.30525,1898.5,1898.4,5.50836]
[1742150543294,2.30525,1898.5,1898.4,4.6656]
[1742150543488,2.30525,1898.5,1898.4,1.4578]
[1742150543793,3.01535,1898.5,1898.4,1.4578]
[1742150544497,1.4625,1898.5,1898.4,2.30059]
[1742150544696,0.85063055,1898.6,1898.5,0.84275]
[1742150544893,2.18343055,1898.6,1898.5,2.0934]
[1742150545294,2.18343055,1898.6,1898.5,1.3718]
[1742150545703,2.18343055,1898.6,1898.5,2.21455]
[1742150545895,2.18343055,1898.6,1898.5,1.3718]
[1742150547502,2.18343055,1898.6,1898.5,2.21455]
[1742150547702,2.18343055,1898.6,1898.5,1.3718]
[1742150550299,2.18343055,1898.6,1898.5,2.21455]
[1742150551596,2.18343055,1898.6,1898.5,1.3718]
[1742150552301,0.84279,1898.4,1898.3,0.67890055]
[1742150552501,2.107,1898.4,1898.0,0.84295]
[1742150552703,0.84293,1898.1,1898.0,0.84294]
[1742150553407,0.84293,1898.1,1897.9,1.404]
[1742150553606,0.84293,1898.1,1897.9,1.41190055]
[1742150553805,0.84293,1898.1,1898.0,1.456]
[1742150554211,1.4566,1898.2,1898.0,1.456]
[1742150554401,0.8429,1898.2,1898.0,1.456]
[1742150554603,0.8429,1898.2,1898.1,0.84293]
[1742150554908,0.8429,1898.2,1898.0,2.29893]
[1742150555110,0.8429,1898.2,1898.0,1.456]
[1742150555405,0.8429,1898.2,1897.9,1.41190055]
[1742150555406,0.8429,1898.2,1898.1,2.29893]
[1742150556607,0.8429,1898.2,1898.1,1.456]
[1742150557214,2.2503,1898.2,1898.1,1.456]
[1742150557910,2.2503,1898.2,1898.1,2.29893]
[1742150558218,3.2078,1898.3,1898.2,0.84288]
[1742150558219,0.84287,1898.3,1898.2,0.84288]
[1742150558519,0.84287,1898.3,1898.2,3.00008]
[1742150558911,2.25027,1898.3,1898.2,3.00008]
[1742150559118,0.84281,1898.4,1898.3,0.84284]
[1742150559415,0.84284,1898.3,1898.2,1.56805]
[1742150560512,0.84288,1898.2,1898.1,4.3569]
[1742150560915,2.24546,1898.3,1898.2,0.84288]
[1742150562016,1.4026,1898.3,1898.2,0.84288]
[1742150562413,2.24544,1898.3,1898.2,0.84288]
[1742150564118,4.6598138,1898.5,1898.1,3.514]
[1742150564315,6.1873938,1898.5,1898.4,0.84279]
[1742150564521,5.45158,1898.5,1898.4,0.84279]
[1742150564821,2.24378,1898.5,1898.4,0.84279]
[1742150565920,0.84279,1898.4,1898.3,1.51961]
[1742150566114,2.18549,1898.4,1898.3,1.51961]
[1742150567827,3.4497,1898.4,1898.1,0.8429]
[1742150568014,0.84291,1898.2,1898.1,4.3569]
[1742150568515,0.84291,1898.2,1898.1,0.8429]
[1742150569115,2.18557,1898.3,1898.2,0.84288]
[1742150569525,0.8429,1898.2,1898.1,0.84289]
[1742150569715,2.2411,1898.2,1898.1,0.84289]
[1742150571114,1.3982,1898.2,1898.1,0.84289]
[1742150571526,2.24108,1898.2,1898.1,0.84289]
[1742150573242,2.95968,1898.2,1898.1,0.84289]
[1742150573838,2.1168,1898.2,1898.1,0.84289]
[1742150574039,2.95968,1898.2,1898.1,2.27359]
[1742150574541,1.3982,1898.2,1898.1,2.27359]
[1742150574841,2.24108,1898.2,1898.1,2.27359]
[1742150580250,1.3982,1898.2,1898.1,2.27359]
[1742150580944,2.24108,1898.2,1898.1,2.27359]
[1742150582039,1.3982,1898.2,1898.1,2.27359]
[1742150583456,3.2078,1898.4,1898.3,0.84284]
[1742150583748,3.2078,1898.4,1898.3,4.35584]
[1742150584046,1.3736,1898.5,1898.4,0.84279]
[1742150584248,0.00790055,1898.6,1898.5,0.84275]
[1742150584451,1.41470055,1898.6,1898.5,2.27395]
[1742150586345,0.00790055,1898.6,1898.5,2.27395]
[1742150589045,0.00790055,1898.6,1898.5,5.78595]
[1742150591262,0.84254,1899.0,1898.9,0.84257]
[1742150591457,1.3978,1899.0,1898.9,0.84257]
[1742150591654,3.9436138,1899.1,1899.0,0.84253]
[1742150591959,3.2078,1899.1,1899.0,0.84253]
[1742150592458,3.2078,1899.1,1899.0,2.18813]
[1742150592646,1.40570055,1899.2,1899.1,0.84248]
[1742150592850,1.40570055,1899.2,1899.1,5.69518]
[1742150592851,0.00790055,1899.2,1899.1,5.69518]
[1742150599863,0.84248,1899.1,1898.9,0.00790055]
[1742150600053,2.0587,1899.0,1898.9,2.25854055]
[1742150602565,2.90123,1899.0,1898.9,0.00790055]
[1742150602764,2.90123,1899.0,1898.9,2.29447055]
[1742150602965,2.90123,1899.0,1898.9,1.45190055]
[1742150603464,2.0587,1899.0,1898.9,2.29447055]
[1742150604061,2.90123,1899.0,1898.9,2.29447055]
[1742150604261,2.90123,1899.0,1898.9,1.45190055]
[1742150605662,2.90123,1899.0,1898.9,0.00790055]
[1742150606763,2.90123,1899.0,1898.9,0.85047055]
[1742150607064,2.0587,1899.0,1898.9,0.85047055]
[1742150607265,2.0587,1899.0,1898.9,2.24697055]
[1742150607463,2.90123,1899.0,1898.9,2.24697055]
[1742150610472,2.90123,1899.0,1898.9,1.40440055]
[1742150610864,2.90123,1899.0,1898.9,2.24697055]
[1742150611167,2.90123,1899.0,1898.9,0.85047055]
[1742150611369,2.90123,1899.0,1898.9,0.00790055]
[1742150611566,2.90123,1899.0,1898.9,0.85047055]
[1742150612269,2.90123,1899.0,1898.9,0.00790055]
[1742150612668,2.90123,1899.0,1898.9,1.36760055]
[1742150613464,2.90123,1899.0,1898.9,2.21017055]
[1742150613671,2.90123,1899.0,1898.9,1.36760055]
[1742150614065,6.10903,1899.0,1898.9,1.36760055]
[1742150614872,6.10903,1899.0,1898.9,2.21017055]
[1742150615959,6.10903,1899.0,1898.9,1.36760055]
[1742150616672,2.90123,1899.0,1898.9,1.36760055]
[1742150618275,2.90123,1899.0,1898.9,2.21017055]
[1742150618568,2.90123,1899.0,1898.9,1.36760055]
[1742150621669,0.84273,1898.6,1898.5,0.84274]
[1742150621972,0.84275,1898.5,1898.4,0.6823]
[1742150622169,0.84272,1898.6,1898.5,0.84274]
[1742150622368,0.721,1898.6,1898.5,0.84274]
[1742150622565,4.77749,1898.7,1898.6,0.8427]
[1742150622962,4.5485,1898.7,1898.6,0.8427]
[1742150623169,1.5784338,1898.8,1898.7,0.84266]
[1742150623471,2.0765138,1898.8,1898.7,0.84266]
[1742150624370,2.9191338,1898.8,1898.7,2.17306]
[1742150625962,1.3407,1898.8,1898.7,2.17306]
[1742150626269,3.2078,1899.0,1898.8,0.84258]
[1742150626469,4.73183,1899.0,1898.9,1.3304]
[1742150626673,4.73183,1899.0,1898.9,2.17297]
[1742150626972,3.2078,1899.0,1898.9,2.17297]
[1742150627173,3.2078,1899.0,1898.9,2.90287]
[1742150628975,0.00790055,1899.2,1899.1,0.84248]
[1742150629270,0.00790055,1899.2,1899.1,4.35148]
[1742150629777,0.00790055,1899.2,1899.1,5.01718]
[1742150629977,0.00790055,1899.2,1899.1,6.39608]
[1742150632779,4.05001,1899.8,1899.6,0.84224]
[1742150632978,2.23284,1899.7,1899.5,4.35028]
[1742150633276,2.23284,1899.7,1899.5,5.03338]
[1742150633277,1.3906,1899.6,1899.5,5.03338]
[1742150635875,0.84231,1899.5,1899.4,0.00790055]
[1742150636080,2.23661,1899.5,1899.4,0.00790055]
[1742150636277,3.65931,1899.5,1899.4,0.00790055]
[1742150637377,0.84248,1899.1,1899.0,3.508]
[1742150637576,0.84248,1899.1,1899.0,4.35053]
[1742150637879,0.84248,1899.1,1899.0,3.508]
[1742150638074,0.84257,1899.0,1898.8,5.68798]
[1742150638275,0.7134,1898.9,1898.8,5.68798]
[1742150638781,2.1361,1898.9,1898.8,5.68798]
[1742150639578,2.1361,1898.9,1898.8,5.01978]
[1742150640879,3.2078,1899.1,1899.0,0.84253]
[1742150641566,4.5745,1899.1,1899.0,0.84253]
[1742150641972,5.417,1899.1,1898.9,1.57194]
[1742150642278,1.4622,1899.0,1898.9,1.57194]
[1742150642882,3.2078,1899.1,1899.0,0.84253]
[1742150643076,4.67,1899.1,1899.0,0.84253]
[1742150643880,3.2078,1899.1,1899.0,0.84253]
[1742150644072,1.50557,1899.4,1899.0,1.4702]
[1742150644274,0.84241,1899.3,1899.2,0.84242]
[1742150644473,2.1254,1899.4,1899.3,0.84239]
[1742150644675,4.05013,1899.5,1899.3,1.55596]
[1742150644878,0.84235,1899.4,1899.3,1.4702]
[1742150645077,2.88455,1899.4,1899.3,1.4702]
[1742150645476,2.88455,1899.4,1899.3,2.31259]
[1742150645674,2.88455,1899.4,1899.3,1.4702]
[1742150645877,2.88455,1899.4,1899.3,2.31259]
[1742150646077,2.0422,1899.4,1899.3,2.31259]
[1742150646380,1.3362,1899.4,1899.3,2.31259]
[1742150647584,2.17855,1899.4,1899.3,2.31259]
[1742150648074,2.17855,1899.4,1899.3,1.4702]
[1742150648379,2.17855,1899.4,1899.3,2.31259]
[1742150648579,2.17855,1899.4,1899.3,1.4702]
[1742150649987,0.84239,1899.3,1899.2,1.5547]
[1742150650178,2.93569,1899.3,1899.2,2.9403]
[1742150651193,2.0933,1899.3,1899.2,2.9403]
[1742150655389,2.93569,1899.3,1899.2,2.9403]
[1742150655597,2.93569,1899.3,1899.2,2.0979]
[1742150656391,2.93569,1899.3,1899.2,2.94034]
[1742150656586,2.0933,1899.3,1899.2,2.94034]
[1742150659095,2.0933,1899.3,1899.2,2.94034]
[1742150659895,4.05014,1899.5,1899.4,0.84235]
[1742150660196,1.3267,1899.4,1899.3,2.18756]
[1742150662298,0.7118,1899.6,1899.3,1.3452]
[1742150662590,0.84231,1899.5,1899.4,6.51163]
[1742150663484,2.1676,1899.6,1899.4,6.51163]
[1742150663683,2.1676,1899.6,1899.5,1.3417]
[1742150663885,0.8423,1899.6,1899.5,1.3417]
[1742150664998,0.84231,1899.5,1899.4,4.34835]
[1742150665298,0.84235,1899.4,1899.3,1.3417]
[1742150665497,1.4623138,1899.4,1899.1,0.84245]
[1742150665697,0.84244,1899.2,1899.1,2.18415]
[1742150666298,4.05023,1899.3,1899.2,0.84244]
[1742150666502,0.84243,1899.3,1899.2,2.21894]
[1742150667495,0.84239,1899.3,1899.2,1.3765]
[1742150670294,0.84248,1899.1,1899.0,4.34749]
[1742150671304,0.84248,1899.1,1899.0,3.505]
[1742150671604,0.84248,1899.1,1899.0,4.9705]
[1742150671901,0.84246,1899.2,1899.1,0.84246]
[1742150672102,0.84246,1899.2,1899.1,2.30796]
[1742150672795,0.84242,1899.3,1899.2,0.84243]
[1742150672989,1.5781938,1899.4,1899.3,0.84239]
[1742150673204,1.5781938,1899.4,1899.3,1.3276]
[1742150674099,3.0365938,1899.4,1899.3,1.3276]
[1742150674304,2.30078,1899.4,1899.3,1.3276]
[1742150674908,2.30078,1899.4,1899.3,2.16999]
[1742150675201,2.30078,1899.4,1899.3,1.3276]
[1742150679205,2.30078,1899.4,1899.3,2.16999]
[1742150680797,4.05013,1899.5,1899.4,0.84235]
[1742150680993,5.42143,1899.5,1899.4,2.30115]
[1742150681702,2.21363,1899.5,1899.4,2.30115]
[1742150681911,1.3713,1899.5,1899.4,2.30115]
[1742150683012,2.21361,1899.5,1899.4,2.30115]
[1742150683306,2.21361,1899.5,1899.4,1.4588]
[1742150683511,2.21361,1899.5,1899.4,2.30115]
[1742150684307,2.21361,1899.5,1899.4,1.4588]
[1742150684514,2.88134,1899.5,1899.3,4.964]
[1742150684710,1.51004,1899.5,1899.4,2.30135]
[1742150689017,1.51004,1899.5,1899.4,1.459]
[1742150689410,1.51004,1899.5,1899.4,2.30135]
[1742150689616,1.51004,1899.5,1899.4,1.459]
[1742150690319,0.84251,1899.1,1899.0,0.84249]
[1742150690618,0.84251,1899.1,1899.0,4.34649]
[1742150690808,3.2078,1899.3,1898.9,3.57281]
[1742150691005,0.84242,1899.3,1899.2,0.8424]
[1742150692016,0.84242,1899.3,1899.2,2.2584]
[1742150692512,0.84242,1899.3,1899.2,1.416]
[1742150692713,0.84242,1899.3,1899.2,2.25844]
[1742150693116,0.84242,1899.3,1899.2,1.416]
[1742150693519,0.84242,1899.3,1899.2,2.8734]
[1742150696919,0.84242,1899.3,1899.2,2.1388]
[1742150697622,0.84242,1899.3,1899.2,1.4574]
[1742150697819,1.51212,1899.3,1899.2,1.4574]
[1742150698015,1.51212,1899.3,1899.0,4.34551]
[1742150698016,0.84248,1899.1,1899.0,4.34551]
[1742150699228,0.84248,1899.1,1899.0,5.76541]
[1742150700738,0.84248,1899.1,1899.0,1.4199]
[1742150701326,0.84262,1898.8,1898.7,0.00790055]
[1742150702317,3.8931,1898.9,1898.3,0.8428]
[1742150702318,0.84279,1898.4,1898.3,2.2778]
[1742150702513,0.84279,1898.4,1898.3,5.7808]
[1742150702714,0.84279,1898.4,1898.3,7.18104]
[1742150702917,0.84279,1898.4,1898.3,6.3382]
[1742150703730,0.84279,1898.4,1898.3,7.18104]
[1742150703922,0.84279,1898.4,1898.3,6.3382]
[1742150704227,0.85068055,1898.5,1898.4,0.84279]
[1742150704529,0.00790055,1898.5,1898.4,2.24009]
[1742150704728,0.85065055,1898.5,1898.4,2.24009]
[1742150704922,0.00790055,1898.5,1898.4,2.24009]
[1742150705228,0.85065055,1898.5,1898.4,2.24009]
[1742150706132,0.00790055,1898.5,1898.4,2.24009]
[1742150706429,0.85065055,1898.5,1898.4,2.24009]
[1742150707834,0.00790055,1898.5,1898.4,2.24009]
[1742150709025,1.37700055,1898.5,1898.4,2.24009]
[1742150710234,2.21975055,1898.5,1898.4,1.3973]
[1742150710429,2.21975055,1898.5,1898.4,2.24009]
[1742150710630,2.21975055,1898.5,1898.4,1.3973]
[1742150710926,1.37700055,1898.5,1898.4,2.24009]
[1742150711843,0.00790055,1898.5,1898.4,2.24009]
[1742150712438,2.19665055,1898.5,1898.4,2.24009]
[1742150712637,2.19665055,1898.5,1898.4,1.3973]
[1742150713042,5.40445055,1898.5,1898.4,1.3973]
[1742150714544,6.10165055,1898.5,1898.4,2.24009]
[1742150715041,2.19665055,1898.5,1898.4,2.24009]
[1742150715243,2.19665055,1898.5,1898.4,2.97299]
[1742150716838,0.00790055,1898.5,1898.4,2.97299]
[1742150718049,0.85065055,1898.5,1898.4,2.97299]
[1742150718353,2.25945055,1898.5,1898.4,2.97299]
[1742150719347,0.00790055,1898.5,1898.4,2.97299]
[1742150719856,0.7358138,1898.8,1898.7,0.84266]
[1742150720045,0.84262,1898.8,1898.7,0.84263]
[1742150720244,5.43911,1898.9,1898.8,0.84262]
[1742150720444,2.23131,1898.9,1898.8,0.84262]
[1742150720747,2.23127,1898.9,1898.8,0.84262]
[1742150721052,2.23127,1898.9,1898.8,2.23632]
[1742150721253,2.23127,1898.9,1898.8,1.3937]
[1742150721444,6.12887,1898.9,1898.8,1.3937]
[1742150723953,6.12887,1898.9,1898.8,2.23632]
[1742150724153,6.12887,1898.9,1898.8,1.3937]
[1742150724845,6.12887,1898.9,1898.8,2.23632]
[1742150725046,6.12887,1898.9,1898.8,1.3937]
[1742150725346,6.12887,1898.9,1898.8,2.23632]
[1742150725752,6.12887,1898.9,1898.8,1.3937]
[1742150731652,6.12887,1898.9,1898.4,0.84277]
[1742150731653,0.84275,1898.5,1898.4,0.84277]
[1742150731848,3.2078,1898.5,1898.3,1.3781]
[1742150732057,2.87469,1898.4,1898.3,2.93504]
[1742150732557,2.87469,1898.4,1898.3,3.63964]
[1742150732755,2.19419,1898.4,1898.3,3.63964]
[1742150734252,4.05058,1898.5,1898.4,0.84279]
[1742150734550,1.5784838,1898.7,1898.6,0.8427]
[1742150734749,1.5784838,1898.7,1898.4,1.3672]
[1742150734750,2.9188838,1898.7,1898.5,4.34471]
[1742150734959,2.9188838,1898.7,1898.6,2.0632]
[1742150735158,2.9188838,1898.7,1898.6,2.73]
[1742150735757,2.18307,1898.7,1898.6,2.73]
[1742150736157,2.18307,1898.7,1898.6,2.0632]
[1742150736358,5.39087,1898.7,1898.6,1.3672]
[1742150741257,5.39087,1898.7,1898.6,2.2099]
[1742150741762,5.39087,1898.7,1898.6,1.3672]
[1742150744364,2.18307,1898.7,1898.6,1.3672]
[1742150745170,2.18307,1898.7,1898.6,2.0544]
[1742150745653,5.39087,1898.7,1898.6,2.0544]
[1742150745860,6.65491,1898.7,1898.3,0.696]
[1742150746063,0.84279,1898.4,1898.3,1.4532]
[1742150746361,0.84284,1898.3,1898.2,0.00790054]
[1742150746556,3.66064,1898.3,1898.2,0.00790054]
[1742150747366,6.86844,1898.3,1898.2,0.00790054]
[1742150749857,6.13884,1898.3,1898.2,0.00790054]